bitfinex-derivatives/quotes_BTCF0:USTF0_20210406
["timestamp","ask_amount","ask_price","bid_price","bid_amount"]
[1617678172061,1.84076094,58745.0,58744.0,0.66234846]
[1617678172455,1.84076094,58745.0,58744.0,0.30093058]
[1617678173356,2.84076094,58745.0,58744.0,0.22633058]
[1617678173955,2.84076094,58745.0,58739.0,0.36145002]
[1617678174557,1.29889588,58740.0,58737.0,0.36145926]
[1617678175357,1.29889588,58740.0,58723.0,0.10725655]
[1617678175358,0.90605553,58738.0,58735.0,0.36115582]
[1617678175659,0.79862519,58736.0,58734.0,0.36116056]
[1617678176257,0.79865265,58735.0,58734.0,0.36116056]
[1617678176657,1.03995961,58735.0,58734.0,0.36116056]
[1617678177366,0.79865265,58735.0,58734.0,0.36116056]
[1617678177762,1.03995845,58735.0,58734.0,0.36116056]
[1617678178263,0.79865265,58735.0,58734.0,0.36116056]
[1617678178463,1.03996516,58735.0,58734.0,0.36116056]
[1617678178863,0.79865265,58735.0,58734.0,0.36116056]
[1617678180068,0.35940367,58735.0,58734.0,0.36116056]
[1617678181067,0.35940367,58735.0,58734.0,0.80255951]
[1617678182769,0.60069549,58735.0,58734.0,0.80255951]
[1617678184070,0.60069549,58735.0,58734.0,0.36116056]
[1617678185070,0.60069549,58735.0,58734.0,0.80255393]
[1617678185872,0.60069549,58735.0,58734.0,0.36116056]
[1617678186372,0.10439,58736.0,58734.0,0.86274848]
[1617678186773,0.10439,58736.0,58735.0,0.80230098]
[1617678186974,3.67479,58736.0,58735.0,0.80230098]
[1617678189274,0.10439,58736.0,58735.0,0.80230098]
[1617678189573,0.35994754,58737.0,58735.0,0.80230098]
[1617678189775,0.46692038,58738.0,58735.0,0.80230098]
[1617678190176,0.35981136,58737.0,58736.0,0.80227822]
[1617678190375,0.51276136,58737.0,58736.0,0.80227822]
[1617678191976,0.15295,58737.0,58726.0,0.10725655]
[1617678193576,0.10725655,58727.0,58726.0,0.10725655]
[1617678194078,0.10725655,58727.0,58716.0,0.4659]
[1617678195380,3.3772,58726.0,58716.0,0.4659]
[1617678195580,3.3772,58726.0,58719.0,0.10725655]
[1617678205799,0.10725655,58727.0,58719.0,0.10725655]
[1617678205999,2.7826,58726.0,58716.0,0.4659]
[1617678207201,2.7826,58726.0,58699.0,1.0851792]
[1617678209603,2.7826,58726.0,58699.0,0.0851792]
[1617678210005,3.7826,58726.0,58699.0,0.0851792]
[1617678210606,2.7826,58726.0,58699.0,0.0851792]
[1617678210906,1.0,58724.0,58699.0,0.0851792]
[1617678211106,1.16086,58724.0,58699.0,0.0851792]
[1617678211708,0.10725655,58700.0,58699.0,0.0851792]
[1617678212008,0.26381655,58700.0,58699.0,0.0851792]
[1617678212708,0.26381655,58700.0,58699.0,1.0851792]
[1617678212909,0.26381655,58700.0,58699.0,0.0851792]
[1617678213909,3.69431655,58700.0,58699.0,0.0851792]
[1617678215212,0.26381655,58700.0,58699.0,1.0851792]
[1617678215415,0.10725655,58700.0,58699.0,4.9434792]
[1617678215613,3.0785,58720.0,58699.0,4.9434792]
[1617678215812,0.10725655,58707.0,58699.0,1.4273592]
[1617678216113,1.0,58739.0,58726.0,2.7331]
[1617678216312,1.0,58739.0,58726.0,2.87238]
[1617678216914,3.957,58749.0,58726.0,2.87238]
[1617678217715,0.10725655,58727.0,58726.0,2.87238]
[1617678217916,0.10725655,58727.0,58726.0,2.7331]
[1617678218817,0.10725655,58727.0,58722.0,0.10725655]
[1617678219018,2.8859,58725.0,58722.0,0.10725655]
[1617678220822,2.8859,58725.0,58724.0,1.0]
[1617678221022,0.10725655,58727.0,58724.0,1.1431]
[1617678221324,0.10725655,58727.0,58724.0,3.5366]
[1617678225832,0.10725655,58727.0,58724.0,0.1431]
[1617678226031,0.1281,58752.0,58724.0,0.13314]
[1617678226231,0.1281,58752.0,58727.0,0.2]
[1617678226431,0.1281,58752.0,58732.0,1.0]
[1617678226730,0.1281,58752.0,58727.0,0.2]
[1617678226932,0.1281,58752.0,58733.0,1.0]
[1617678227232,0.1281,58752.0,58740.0,1.0]
[1617678227532,0.1281,58752.0,58740.0,1.15891]
[1617678227732,0.1281,58752.0,58743.0,0.10725655]
[1617678228634,0.051,58751.0,58743.0,0.10725655]
[1617678228933,0.1281,58752.0,58743.0,0.10725655]
[1617678229134,0.1281,58752.0,58750.0,2.8641]
[1617678229834,0.10725655,58751.0,58750.0,2.8641]
[1617678231834,0.23535655,58751.0,58750.0,2.8641]
[1617678236241,0.23535655,58751.0,58750.0,3.8641]
[1617678236669,0.10725655,58751.0,58750.0,3.8641]
[1617678236850,0.1281,58772.0,58750.0,3.8641]
[1617678237242,0.1281,58791.0,58763.0,1.0]
[1617678237442,0.1281,58791.0,58763.0,1.12362]
[1617678237642,0.1281,58791.0,58765.0,1.0]
[1617678237947,0.1281,58791.0,58766.0,0.10725655]
[1617678239744,0.10725655,58767.0,58766.0,0.10725655]
[1617678240145,0.10725655,58767.0,58766.0,1.10725655]
[1617678248058,0.1281,58791.0,58766.0,1.10725655]
[1617678248458,0.1281,58804.0,58778.0,1.0]
[1617678248658,0.1281,58804.0,58790.0,3.4521]
[1617678248659,3.0001,58799.0,58790.0,3.4521]
[1617678249367,3.14083,58799.0,58790.0,3.4521]
[1617678249861,0.23535655,58791.0,58790.0,3.4521]
[1617678252864,0.23535655,58791.0,58772.0,1.0]
[1617678253066,0.10725655,58791.0,58772.0,1.0]
[1617678253265,3.0233,58779.0,58767.0,0.4949]
[1617678253466,3.12756,58779.0,58767.0,0.4949]
[1617678253967,0.10725655,58768.0,58767.0,0.4949]
[1617678273999,0.10725655,58768.0,58767.0,0.60215655]
[1617678274898,0.10725655,58768.0,58767.0,3.70785655]
[1617678275999,0.10725655,58774.0,58767.0,3.70785655]
[1617678276199,0.10725655,58774.0,58767.0,4.83288655]
[1617678276400,0.10725655,58774.0,58773.0,1.0]
[1617678277001,0.10725655,58774.0,58767.0,3.83288655]
[1617678277301,0.10725655,58774.0,58773.0,1.0]
[1617678277502,0.10725655,58774.0,58771.0,3.7467]
[1617678277703,0.10725655,58774.0,58771.0,2.7467]
[1617678278202,0.10725655,58774.0,58773.0,0.10725655]
[1617678278802,0.10725655,58774.0,58773.0,3.33545655]
[1617678279504,0.10725655,58774.0,58773.0,4.33545655]
[1617678285213,0.10725655,58774.0,58773.0,0.10725655]
[1617678285513,0.24141655,58774.0,58773.0,0.10725655]
[1617678287617,0.10725655,58774.0,58773.0,0.10725655]
[1617678288116,0.10725655,58774.0,58773.0,2.99135655]
[1617678289117,0.10725655,58774.0,58773.0,3.99135655]
[1617678289818,0.10725655,58774.0,58773.0,2.99135655]
[1617678290220,0.1281,58794.0,58773.0,1.30725655]
[1617678290419,0.1281,58794.0,58779.0,3.6448]
[1617678290619,0.1281,58794.0,58785.0,1.0]
[1617678290919,0.1281,58813.0,58785.0,1.15687]
[1617678291120,0.1281,58813.0,58787.0,1.0]
[1617678291319,0.1281,58813.0,58788.0,1.0]
[1617678292122,0.1281,58813.0,58796.0,0.10725655]
[1617678294225,0.10725655,58797.0,58796.0,0.10725655]
[1617678303636,0.10725655,58797.0,58796.0,1.10725655]
[1617678303835,0.10725655,58797.0,58796.0,4.96495655]
[1617678304038,0.1281,58813.0,58796.0,4.96495655]
[1617678304235,0.1281,58813.0,58811.0,0.10725655]
[1617678304436,0.1281,58813.0,58811.0,0.23171655]
[1617678304736,0.1281,58832.0,58812.0,2.969]
[1617678306238,0.10725655,58813.0,58812.0,2.969]
[1617678307140,0.10725655,58813.0,58812.0,6.69693748]
[1617678307639,0.10625227,58813.0,58812.0,6.69693748]
[1617678311446,0.10625227,58813.0,58812.0,7.69637865]
[1617678312447,0.10625227,58813.0,58812.0,7.81745865]
[1617678318856,0.10524818,58813.0,58812.0,7.81745865]
[1617678319357,0.10524818,58813.0,58812.0,5.66442524]
[1617678319758,0.10524818,58813.0,58812.0,7.81276996]
[1617678323668,0.10524818,58813.0,58812.0,6.81332879]
[1617678325666,0.10524818,58813.0,58812.0,7.8074467]
[1617678326966,1.20948594,58813.0,58812.0,4.18414444]
[1617678328271,1.45045391,58813.0,58812.0,4.18414444]
[1617678328567,1.20948594,58813.0,58812.0,5.18414444]
[1617678329067,1.45044102,58813.0,58812.0,5.18414444]
[1617678329272,1.20948594,58813.0,58812.0,5.18414444]
[1617678329768,1.45043513,58813.0,58812.0,5.18414444]
[1617678330972,1.0087601,58813.0,58812.0,5.18414444]
[1617678333077,0.90351192,58813.0,58812.0,5.18414444]
[1617678333295,0.95401192,58813.0,58812.0,5.68091265]
[1617678333478,0.90351192,58813.0,58812.0,5.68091265]
[1617678334074,0.66256273,58813.0,58812.0,5.68091265]
[1617678334574,0.66256273,58813.0,58812.0,4.18414444]
[1617678334575,0.01010707,58813.0,58812.0,4.18414444]
[1617678334776,0.01010707,58813.0,58812.0,5.18414444]
[1617678334974,0.01010707,58813.0,58812.0,5.38414444]
[1617678335375,0.00510345,58813.0,58812.0,5.38414444]
[1617678337076,0.00510345,58813.0,58812.0,2.21514444]
[1617678337276,0.00510345,58813.0,58812.0,2.09406444]
[1617678338077,0.01010706,58813.0,58812.0,2.09406444]
[1617678338477,0.30030972,58814.0,58812.0,2.09406444]
[1617678338878,0.36035911,58815.0,58813.0,1.0]
[1617678339278,0.36035911,58815.0,58814.0,0.71469066]
[1617678339678,0.36035911,58815.0,58814.0,1.71469066]
[1617678339877,0.36035911,58815.0,58814.0,0.65445518]
[1617678340078,0.30031061,58815.0,58814.0,0.65445518]
[1617678340681,0.66066539,58815.0,58814.0,0.65445518]
[1617678341582,0.66066539,58815.0,58814.0,0.29747963]
[1617678341988,0.66066539,58815.0,58814.0,3.34927963]
[1617678342483,0.66066539,58815.0,58814.0,3.706446]
[1617678342683,0.66066539,58815.0,58814.0,3.76668382]
[1617678343884,0.66066539,58815.0,58814.0,3.40951745]
[1617678344984,0.66066539,58815.0,58814.0,3.76633651]
[1617678347185,0.10725655,58817.0,58814.0,3.0518]
[1617678347585,0.10725655,58817.0,58816.0,0.05644898]
[1617678347986,0.90845693,58817.0,58816.0,0.05644898]
[1617678350091,0.46780673,58817.0,58816.0,0.41310531]
[1617678351693,0.90846406,58817.0,58816.0,0.05644898]
[1617678355799,0.90846406,58817.0,58816.0,0.41329012]
[1617678356497,0.90846406,58817.0,58816.0,0.52054667]
[1617678357098,0.46780673,58817.0,58816.0,0.52054667]
[1617678358401,0.90851737,58817.0,58816.0,0.52054667]
[1617678359300,0.90851737,58817.0,58816.0,0.16370553]
[1617678359903,0.90851737,58817.0,58816.0,0.5211937]
[1617678360302,0.90851737,58817.0,58816.0,0.16370553]
[1617678362205,0.90851737,58817.0,58816.0,0.52111584]
[1617678362605,0.90851737,58817.0,58816.0,0.16370553]
[1617678362606,0.90858625,58817.0,58816.0,0.16370553]
[1617678363908,4.51344406,58817.0,58816.0,0.16370553]
[1617678364407,4.87488059,58817.0,58816.0,0.16370553]
[1617678364607,4.87488059,58817.0,58816.0,0.05644898]
[1617678364807,1.51098059,58817.0,58816.0,0.05644898]
[1617678365209,1.14954406,58817.0,58816.0,0.05644898]
[1617678367110,1.14954406,58817.0,58813.0,0.06024146]
[1617678367411,1.14954406,58817.0,58812.0,3.5181]
[1617678368013,0.8014041,58813.0,58812.0,3.5181]
[1617678372221,0.8014041,58813.0,58812.0,3.87603679]
[1617678372621,0.8014041,58813.0,58812.0,3.98329334]
[1617678374528,0.36064186,58813.0,58812.0,3.98329334]
[1617678374726,0.36064186,58813.0,58812.0,0.46519334]
[1617678374926,0.60158931,58813.0,58812.0,0.46519334]
[1617678375227,0.60158931,58813.0,58812.0,0.90241201]
[1617678375228,0.36064186,58813.0,58812.0,0.90241201]
[1617678376332,0.36064186,58813.0,58812.0,0.46519334]
[1617678377930,0.36064186,58813.0,58812.0,0.76331466]
[1617678377931,0.6612593,58813.0,58812.0,0.76331466]
[1617678378332,0.6612593,58813.0,58812.0,4.35901466]
[1617678378734,0.6612593,58813.0,58812.0,4.8865013]
[1617678380535,0.6612593,58813.0,58812.0,4.35901466]
[1617678382839,0.6612593,58813.0,58812.0,4.79673183]
[1617678386742,0.6612593,58813.0,58812.0,4.68947528]
[1617678387041,1.10236763,58813.0,58812.0,4.68947528]
[1617678387844,0.6612593,58813.0,58812.0,4.68947528]
[1617678388844,1.10237036,58813.0,58812.0,4.25175811]
[1617678390746,1.25276036,58813.0,58812.0,4.25175811]
[1617678390948,1.25276036,58813.0,58812.0,0.65605811]
[1617678391651,4.68586036,58813.0,58812.0,0.65605811]
[1617678391951,4.92683618,58813.0,58812.0,0.65605811]
[1617678392348,4.92683618,58813.0,58811.0,0.29893849]
[1617678392349,5.78963339,58813.0,58811.0,0.29893849]
[1617678392649,5.78963339,58813.0,58809.0,0.2989936]
[1617678393062,5.78963339,58813.0,58797.0,0.4989]
[1617678393063,5.78963339,58813.0,58807.0,0.35874271]
[1617678393064,1.60432163,58810.0,58807.0,0.35874271]
[1617678393448,1.10299563,58808.0,58807.0,0.35874271]
[1617678394053,1.10299563,58808.0,58807.0,0.29875319]
[1617678394559,1.10299563,58808.0,58797.0,0.4989]
[1617678394560,1.10299563,58808.0,58806.0,0.29886062]
[1617678394777,0.10725655,58807.0,58806.0,0.29886062]
[1617678395051,0.10725655,58807.0,58806.0,2.7056]
[1617678395450,1.45032225,58807.0,58806.0,2.7056]
[1617678396353,1.45032225,58807.0,58806.0,3.0044545]
[1617678396652,1.45032225,58807.0,58806.0,3.0000545]
[1617678397453,1.45032225,58807.0,58806.0,2.7012]
[1617678397854,1.95121818,58807.0,58806.0,2.7012]
[1617678398054,1.95121818,58807.0,58804.0,0.29899052]
[1617678398254,2.5809,58806.0,58804.0,0.29899052]
[1617678398655,1.70455808,58805.0,58804.0,0.29899052]
[1617678399460,1.70455808,58805.0,58804.0,0.65756839]
[1617678400357,1.343058,58805.0,58804.0,0.65756839]
[1617678400960,0.6612548,58805.0,58804.0,0.71781331]
[1617678401258,0.90222637,58805.0,58804.0,0.71781331]
[1617678401459,0.90222637,58805.0,58804.0,1.71781331]
[1617678401762,0.6612548,58805.0,58804.0,2.09536039]
[1617678402459,0.30057947,58805.0,58804.0,2.15559881]
[1617678402661,0.30057947,58805.0,58804.0,1.15559881]
[1617678402878,0.30057947,58805.0,58804.0,1.26285536]
[1617678403260,0.30057947,58805.0,58804.0,1.20261694]
[1617678403759,0.30057947,58805.0,58804.0,1.26285418]
[1617678405666,0.01011444,58805.0,58804.0,1.26285418]
[1617678406771,0.00510722,58805.0,58804.0,1.75997304]
[1617678407173,0.01011429,58806.0,58804.0,1.75997304]
[1617678407466,0.01011437,58805.0,58804.0,1.26285418]
[1617678407967,0.3005271,58806.0,58804.0,1.26285418]
[1617678407968,0.3005271,58806.0,58804.0,0.96386366]
[1617678408467,0.3005271,58806.0,58805.0,0.85585688]
[1617678408767,0.3005271,58806.0,58805.0,1.15415514]
[1617678409868,0.3005271,58806.0,58805.0,0.85585688]
[1617678410070,0.3005271,58806.0,58805.0,1.15423892]
[1617678412374,0.01011409,58806.0,58805.0,1.15423892]
[1617678413674,0.01011409,58806.0,58805.0,1.65253094]
[1617678413675,0.00510706,58806.0,58805.0,1.65253094]
[1617678414675,0.01011398,58806.0,58805.0,1.65253094]
[1617678423387,0.01011676,58806.0,58805.0,1.65253094]
[1617678425492,0.30060014,58806.0,58805.0,1.65253094]
[1617678425990,0.40785674,58807.0,58805.0,1.65253094]
[1617678426390,0.40785674,58807.0,58806.0,1.09866228]
[1617678429893,0.40785674,58807.0,58806.0,1.59811568]
[1617678433896,0.11737361,58807.0,58806.0,1.59811568]
[1617678434198,0.40786429,58807.0,58806.0,1.59811568]
[1617678437601,0.10725655,58807.0,58806.0,1.59811568]
[1617678440215,0.10725655,58807.0,58806.0,2.59811568]
[1617678440405,0.10725655,58807.0,58806.0,5.21594568]
[1617678440805,0.10725655,58807.0,58806.0,5.3665196]
[1617678441012,0.10725655,58807.0,58806.0,4.3665196]
[1617678443011,0.11236397,58807.0,58806.0,4.3665196]
[1617678444812,0.10725655,58807.0,58806.0,4.3665196]
[1617678446114,0.10725655,58807.0,58806.0,5.5665196]
[1617678446913,0.10725655,58807.0,58806.0,5.3665196]
[1617678448417,0.23247655,58807.0,58806.0,4.3665196]
[1617678448619,0.23247655,58807.0,58806.0,1.8771196]
[1617678448817,0.23247655,58807.0,58806.0,1.7486896]
[1617678449518,0.23247655,58807.0,58806.0,1.59811568]
[1617678451223,0.23758439,58807.0,58806.0,1.59811568]
[1617678451621,0.23247655,58807.0,58806.0,1.59811568]
[1617678452023,0.23758441,58807.0,58806.0,1.59811568]
[1617678452624,0.11236441,58807.0,58806.0,1.59811568]
[1617678454225,0.40826684,58807.0,58806.0,1.59811568]
[1617678458132,0.40826684,58807.0,58806.0,5.17781568]
[1617678458531,0.40826684,58807.0,58806.0,5.32839341]
[1617678463138,0.30101029,58807.0,58806.0,5.32839341]
[1617678463638,0.40826684,58807.0,58806.0,5.43564996]
[1617678464740,0.55521684,58807.0,58806.0,5.43564996]
[1617678466842,0.40826684,58807.0,58806.0,5.43564996]
[1617678467943,0.40826684,58807.0,58806.0,1.85594996]
[1617678468745,0.40826684,58807.0,58806.0,1.76560332]
[1617678472947,0.45966684,58807.0,58806.0,2.76560332]
[1617678473148,0.40826684,58807.0,58806.0,2.76560332]
[1617678473347,0.40826684,58807.0,58806.0,1.76560332]
[1617678473648,0.40826684,58807.0,58806.0,2.76560332]
[1617678474149,0.10725655,58807.0,58806.0,1.76560332]
[1617678474550,0.40833077,58807.0,58806.0,1.76560332]
[1617678477553,0.40833077,58807.0,58806.0,2.76560332]
[1617678478354,0.40833077,58807.0,58806.0,1.76560332]
[1617678483464,0.11738904,58807.0,58806.0,2.76560332]
[1617678484366,0.11237296,58807.0,58806.0,1.76560332]
[1617678484868,0.11738904,58807.0,58806.0,1.76560332]
[1617678485768,0.11237231,58807.0,58806.0,2.76560332]
[1617678486268,0.11237231,58807.0,58806.0,1.76560332]
[1617678486467,0.11237231,58807.0,58806.0,2.76560332]
[1617678486767,0.11237231,58807.0,58806.0,1.76560332]
[1617678486967,0.10725655,58807.0,58806.0,1.76560332]
[1617678487469,0.11739016,58807.0,58806.0,1.76560332]
[1617678488771,0.11237342,58807.0,58806.0,1.76560332]
[1617678489269,0.11237342,58807.0,58806.0,2.32536557]
[1617678490975,0.11237342,58807.0,58806.0,3.32536557]
[1617678492176,0.10725655,58807.0,58806.0,3.32536557]
[1617678492578,0.1123733,58807.0,58806.0,3.32536557]
[1617678494078,0.1123733,58807.0,58806.0,5.88996557]
[1617678494479,0.1123733,58807.0,58806.0,4.88996557]
[1617678494779,0.1123733,58807.0,58806.0,4.9803047]
[1617678495082,0.11739035,58807.0,58806.0,4.42054245]
[1617678496984,0.11237294,58807.0,58806.0,4.42054245]
[1617678497384,0.11738916,58807.0,58806.0,4.42054245]
[1617678497687,0.11738916,58807.0,58806.0,4.79634245]
[1617678498298,0.16788916,58807.0,58806.0,4.93687622]
[1617678498488,0.11738916,58807.0,58806.0,4.93687622]
[1617678499187,0.11237295,58807.0,58806.0,4.93687622]
[1617678499587,0.11738912,58807.0,58806.0,4.93687622]
[1617678499987,0.10725655,58807.0,58806.0,4.79634245]
[1617678500490,0.4083275,58807.0,58806.0,4.79634245]
[1617678502590,0.10725655,58807.0,58806.0,4.79634245]
[1617678502993,0.408327,58807.0,58806.0,4.79634245]
[1617678503993,0.11237298,58807.0,58806.0,4.79634245]
[1617678504896,0.11738886,58807.0,58806.0,1.85594245]
[1617678505194,3.67428886,58807.0,58806.0,1.85594245]
[1617678505799,3.96522337,58807.0,58806.0,1.76560332]
[1617678507398,0.40832337,58807.0,58806.0,1.76560332]
[1617678507806,0.40832337,58807.0,58806.0,4.77330332]
[1617678508301,0.40832337,58807.0,58806.0,4.86364789]
[1617678509201,0.11738933,58807.0,58806.0,4.86364789]
[1617678511905,0.40833496,58807.0,58806.0,4.86364789]
[1617678513002,0.10725655,58807.0,58806.0,4.86364789]
[1617678513404,0.40833298,58807.0,58806.0,4.86364789]
[1617678516106,0.40833298,58807.0,58806.0,1.85594789]
[1617678516306,3.39843298,58807.0,58806.0,1.85594789]
[1617678516707,3.39843298,58807.0,58806.0,1.76560332]
[1617678516906,3.53142298,58807.0,58806.0,1.76560332]
[1617678519410,3.39843298,58807.0,58806.0,1.76560332]
[1617678522513,3.52734298,58807.0,58806.0,1.76560332]
[1617678522912,3.52734298,58807.0,58806.0,1.65834677]
[1617678523612,3.52734298,58807.0,58806.0,1.59811568]
[1617678524211,3.88864794,58807.0,58806.0,1.59811568]
[1617678524413,3.75973794,58807.0,58806.0,1.59811568]
[1617678524614,3.44943298,58807.0,58806.0,1.59811568]
[1617678524814,3.39843298,58807.0,58806.0,1.59811568]
[1617678528420,3.56235298,58807.0,58806.0,1.59811568]
[1617678528619,3.56235298,58807.0,58806.0,1.65834747]
[1617678530323,3.39843298,58807.0,58806.0,1.65834747]
[1617678531525,3.75965891,58807.0,58806.0,1.65834747]
[1617678532425,3.39843298,58807.0,58806.0,1.65834747]
[1617678535429,0.40833298,58807.0,58806.0,1.65834747]
[1617678535628,0.40833298,58807.0,58806.0,4.32424747]
[1617678535827,0.40833298,58807.0,58806.0,4.42967747]
[1617678536128,0.40833298,58807.0,58806.0,4.5200236]
[1617678536555,0.40833298,58807.0,58806.0,5.5200236]
[1617678536929,0.40833298,58807.0,58806.0,4.5200236]
[1617678537129,0.40833298,58807.0,58806.0,5.5200236]
[1617678537529,0.1173868,58807.0,58806.0,5.5200236]
[1617678537731,0.01013025,58807.0,58806.0,5.5200236]
[1617678537931,0.00511524,58807.0,58806.0,5.5200236]
[1617678538130,0.00511524,58807.0,58806.0,4.5200236]
[1617678538733,0.00511524,58807.0,58806.0,5.5200236]
[1617678539133,0.00511524,58807.0,58806.0,4.5200236]
[1617678539632,0.00511524,58807.0,58806.0,5.5200236]
[1617678540034,0.00511524,58807.0,58806.0,4.5200236]
[1617678540234,0.00511524,58807.0,58806.0,5.5200236]
[1617678540436,0.00511502,58810.0,58806.0,6.07891687]
[1617678540835,0.00511492,58812.0,58809.0,2.15525167]
[1617678541035,0.00511492,58812.0,58810.0,0.2]
[1617678541236,0.00511492,58812.0,58811.0,1.59635952]
[1617678541535,0.00511492,58812.0,58811.0,2.59635952]
[1617678541735,0.30096909,58815.0,58811.0,3.21505014]
[1617678541736,0.00511473,58815.0,58811.0,3.21505014]
[1617678542135,0.00511473,58815.0,58813.0,1.0]
[1617678542435,0.00511473,58815.0,58814.0,2.70254333]
[1617678542735,0.00511473,58815.0,58814.0,2.76276577]
[1617678545138,0.01012906,58815.0,58814.0,2.76276577]
[1617678545339,0.01012906,58815.0,58814.0,6.14496577]
[1617678545839,0.01012906,58815.0,58814.0,6.37581925]
[1617678546945,0.01012906,58815.0,58814.0,5.37581925]
[1617678547143,0.0101284,58816.0,58814.0,5.37581925]
[1617678547344,0.0101284,58816.0,58814.0,6.37581925]
[1617678547744,0.0101284,58816.0,58815.0,1.74611509]
[1617678547745,0.30094608,58816.0,58815.0,1.74611509]
[1617678548046,0.36133397,58828.0,58815.0,1.88663404]
[1617678548047,0.36111566,58818.0,58815.0,1.88663404]
[1617678548254,0.10725655,58816.0,58815.0,1.88663404]
[1617678548471,0.40820567,58816.0,58815.0,0.29107479]
[1617678549046,0.40820567,58816.0,58815.0,1.88687378]
[1617678549758,0.40820567,58816.0,58815.0,1.74635483]
[1617678549970,0.40820567,58816.0,58815.0,1.88687571]
[1617678554149,0.40820567,58816.0,58815.0,1.74635483]
[1617678555050,0.11737538,58816.0,58815.0,1.74635483]
[1617678556051,0.11236594,58816.0,58815.0,1.74635483]
[1617678556550,0.10725655,58816.0,58815.0,1.74635483]
[1617678557753,0.27410436,58816.0,58815.0,1.74635483]
[1617678558152,0.56461911,58816.0,58815.0,1.15733414]
[1617678558563,3.60601911,58816.0,58815.0,1.0971118]
[1617678559359,3.96676656,58816.0,58815.0,1.0971118]
[1617678563157,3.666134,58816.0,58815.0,1.0971118]
[1617678563358,3.96677593,58816.0,58815.0,1.0971118]
[1617678563658,3.96677593,58816.0,58815.0,1.15723635]
[1617678564159,3.96677593,58816.0,58815.0,1.09700357]
[1617678565561,0.92537593,58816.0,58815.0,1.09700357]
[1617678565763,0.92537593,58816.0,58815.0,3.55970357]
[1617678565963,0.92537593,58816.0,58815.0,1.09700357]
[1617678566863,3.97547593,58816.0,58815.0,1.09700357]
[1617678567866,4.41641409,58816.0,58815.0,0.65820214]
[1617678568470,4.41641409,58816.0,58815.0,0.65350214]
[1617678568767,4.41641409,58816.0,58815.0,0.71373881]
[1617678569071,4.41641409,58816.0,58815.0,0.65350214]
[1617678571671,4.41641409,58816.0,58815.0,0.71373894]
[1617678572173,4.46691409,58816.0,58815.0,0.65350214]
[1617678572474,4.41641409,58816.0,58815.0,0.71373883]
[1617678572973,4.41641409,58816.0,58815.0,0.65350214]
[1617678574475,3.97547593,58816.0,58815.0,0.65350214]
[1617678574775,3.86634604,58816.0,58815.0,0.65350214]
[1617678575077,3.91694604,58816.0,58815.0,0.64320214]
[1617678575275,4.36746082,58816.0,58813.0,0.29989103]
[1617678575475,2.6242,58814.0,58813.0,0.29989103]
[1617678575777,2.6242,58814.0,58811.0,0.29999457]
[1617678575778,5.3670688,58814.0,58811.0,0.29999457]
[1617678576176,1.24288722,58812.0,58811.0,0.29999457]
[1617678576377,2.74288722,58812.0,58811.0,0.29999457]
[1617678576576,2.74288722,58812.0,58797.0,0.99896463]
[1617678576577,2.24174403,58812.0,58808.0,0.29961653]
[1617678576776,0.2,58811.0,58808.0,0.29961653]
[1617678576977,0.94071078,58809.0,58808.0,0.29961653]
[1617678577177,3.44071078,58809.0,58808.0,0.28191653]
[1617678577580,4.04318286,58809.0,58808.0,0.28191653]
[1617678577778,3.84318286,58809.0,58808.0,0.28191653]
[1617678577979,3.84318286,58809.0,58800.0,0.43943758]
[1617678578279,3.84318286,58809.0,58797.0,0.4989]
[1617678578280,3.84318286,58809.0,58799.0,0.43931777]
[1617678578480,0.10725655,58800.0,58799.0,0.43931777]
[1617678578680,0.10725655,58800.0,58798.0,0.43957808]
[1617678578681,0.25625655,58800.0,58798.0,0.43957808]
[1617678579482,0.25625655,58800.0,58799.0,0.4395151]
[1617678579781,0.10725655,58800.0,58799.0,0.49976232]
[1617678580185,0.10725655,58800.0,58799.0,0.4395151]
[1617678580685,0.11235797,58800.0,58799.0,0.4395151]
[1617678581586,0.11735934,58800.0,58799.0,0.4395151]
[1617678582086,0.10725655,58800.0,58799.0,0.4395151]
[1617678583692,3.41625655,58800.0,58799.0,0.4395151]
[1617678583886,3.41625655,58800.0,58798.0,0.49988]
[1617678584288,3.41625655,58800.0,58799.0,0.06024732]
[1617678584689,3.41625655,58800.0,58798.0,0.0602473]
[1617678586991,3.41625655,58800.0,58798.0,0.49989725]
[1617678587592,3.41625655,58800.0,58798.0,0.0602473]
[1617678587894,3.41625655,58800.0,58797.0,0.93863424]
[1617678587895,3.41625655,58800.0,58799.0,0.06024797]
[1617678588294,3.41625655,58800.0,58798.0,0.49988043]
[1617678588795,3.41625655,58800.0,58798.0,0.06024793]
[1617678589194,3.41625655,58800.0,58797.0,0.93861344]
[1617678589195,3.4263458,58800.0,58799.0,0.0602479]
[1617678589795,3.4263458,58800.0,58798.0,0.06024829]
[1617678590095,3.4263458,58800.0,58799.0,0.06024855]
[1617678590497,3.4263458,58800.0,58798.0,0.06024815]
[1617678591296,3.41625655,58800.0,58798.0,0.06024815]
[1617678591697,3.4263458,58800.0,58798.0,0.06024815]
[1617678592711,0.0100896,58799.0,58798.0,0.06024815]
[1617678593102,3.41625655,58800.0,58798.0,0.06024815]
[1617678593103,3.42634621,58800.0,58798.0,0.06024815]
[1617678594010,3.4213512,58800.0,58798.0,0.06024815]
[1617678595322,3.41625655,58800.0,58798.0,0.06024815]
[1617678596213,0.00509465,58799.0,58798.0,0.06024815]
[1617678596507,0.15390465,58799.0,58798.0,0.06024815]
[1617678597207,0.14881,58799.0,58798.0,0.06024815]
[1617678599208,0.15390465,58799.0,58798.0,0.06024815]
[1617678600509,0.14881,58799.0,58798.0,0.06024815]
[1617678600712,0.15889612,58799.0,58798.0,0.06024815]
[1617678601010,0.15889612,58799.0,58797.0,0.4989]
[1617678601612,0.15889612,58799.0,58797.0,0.85823774]
[1617678602012,0.01008622,58798.0,58797.0,0.4989]
[1617678603612,0.01008622,58798.0,58796.0,0.35937381]
[1617678604313,0.01008633,58797.0,58795.0,0.3594787]
[1617678605949,2.61968655,58796.0,58794.0,0.35937755]
[1617678606248,2.61968655,58796.0,58771.0,0.14059097]
[1617678606249,2.61968655,58796.0,58793.0,0.35945644]
[1617678606251,1.5,58795.0,58793.0,0.35945644]
[1617678606460,2.5,58795.0,58793.0,0.35945644]
[1617678606618,0.10725655,58794.0,58783.0,0.4394396]
[1617678606815,1.5,58793.0,58783.0,0.4394396]
[1617678607016,0.01007911,58789.0,58782.0,0.43944631]
[1617678607624,0.01007655,58787.0,58780.0,0.43946612]
[1617678607817,0.16221655,58787.0,58780.0,0.43946612]
[1617678608018,0.01007487,58786.0,58779.0,0.43946705]
[1617678608419,0.16221528,58787.0,58785.0,0.2996364]
[1617678608718,0.10725655,58786.0,58785.0,0.2996364]
[1617678609019,0.11733133,58786.0,58779.0,0.43946705]
[1617678609419,0.11733133,58786.0,58785.0,0.29963545]
[1617678609819,0.40646045,58786.0,58785.0,0.29963545]
[1617678610218,0.40646045,58786.0,58785.0,0.25183545]